bitfinex-derivatives/quotes_SOLF0:USTF0_20240911
["timestamp","ask_amount","ask_price","bid_price","bid_amount"]
[1726062125042,30.4258,131.72,131.62,29.21]
[1726062125348,30.4258,131.72,131.59,29.21]
[1726062125542,29.21,131.74,131.63,29.21]
[1726062125749,3.7965,131.7,131.64,2.7653]
[1726062126044,29.21,131.74,131.64,2.7653]
[1726062126940,3.7966,131.69,131.64,2.7653]
[1726062127136,3.86942312,131.75,131.64,2.7653]
[1726062127343,1.20678926,131.74,131.65,30.617]
[1726062127538,3.7951,131.75,131.69,3.7963]
[1726062128051,3.7952,131.74,131.69,3.7963]
[1726062128441,29.21,131.8,131.7,29.21]
[1726062128636,1.2158,131.81,131.65,1.407]
[1726062128637,29.21,131.78,131.67,29.21]
[1726062128849,33.08247455,131.78,131.67,29.21]
[1726062129048,3.7946,131.76,131.67,29.21]
[1726062129251,3.87247455,131.78,131.69,29.21]
[1726062129445,30.4258,131.81,131.69,29.21]
[1726062129745,30.4258,131.81,131.67,29.21]
[1726062129746,29.21,131.78,131.67,29.21]
[1726062130048,33.05816952,131.78,131.7,3.7961]
[1726062130241,33.05816952,131.78,131.67,29.21]
[1726062130640,33.05816952,131.78,131.69,3.7965]
[1726062131043,33.05816952,131.78,131.67,29.21]
[1726062131243,33.05816952,131.78,131.7,3.796]
[1726062131438,33.05816952,131.78,131.67,29.21]
[1726062132346,3.84816952,131.78,131.71,29.21]
[1726062132541,3.7944,131.77,131.72,2.692]
[1726062132744,3.74725187,131.78,131.72,2.692]
[1726062132948,3.7949,131.75,131.72,4.0621]
[1726062133145,3.76243984,131.76,131.72,2.692]
[1726062133444,29.21,131.8,131.72,2.692]
[1726062133839,29.21,131.78,131.68,5.1669]
[1726062134045,3.795,131.75,131.69,2.7406]
[1726062134246,33.04192481,131.78,131.69,2.7406]
[1726062135049,33.04192481,131.78,131.69,6.5369]
[1726062135247,3.83192481,131.78,131.69,2.7406]
[1726062135453,29.21,131.8,131.69,31.9506]
[1726062135649,3.7953,131.74,131.69,2.7406]
[1726062135849,29.21,131.8,131.69,2.7406]
[1726062136151,3.7945,131.77,131.69,2.7406]
[1726062136357,3.70386776,131.78,131.71,29.21]
[1726062136652,1.2158,131.81,131.72,3.7955]
[1726062136854,1.2158,131.81,131.71,29.21]
[1726062137249,29.21,131.8,131.7,3.796]
[1726062137551,29.21,131.8,131.69,2.7406]
[1726062137753,3.7947,131.76,131.71,3.796]
[1726062137948,29.21,131.72,131.49,409.81012297]
[1726062138145,29.21,131.71,131.61,1.4142]
[1726062138352,3.8598223,131.7,131.62,2.7786]
[1726062138550,29.21,131.71,131.62,2.7786]
[1726062139345,33.00034095,131.71,131.62,2.7786]
[1726062141257,29.21,131.67,131.49,171.40322297]
[1726062141452,29.21,131.65,131.54,2.7207]
[1726062141654,3.7993,131.6,131.54,2.7207]
[1726062141952,29.21,131.65,131.54,2.7207]
[1726062142152,3.7989,131.61,131.54,2.7207]
[1726062142346,29.21,131.65,131.54,2.7207]
[1726062144657,3.7986,131.62,131.55,3.8006]
[1726062144848,29.21,131.65,131.54,2.7207]
[1726062145657,3.7991,131.61,131.54,6.5215]
[1726062146753,29.21,131.65,131.54,2.7207]
[1726062146754,3.7995,131.59,131.54,2.7207]
[1726062147069,29.21,131.65,131.54,2.7207]
[1726062147557,29.21,131.62,131.54,2.7207]
[1726062147952,3.7995,131.59,131.54,2.7207]
[1726062148659,3.76036292,131.6,131.54,2.7207]
[1726062148859,29.21,131.62,131.54,2.7207]
[1726062149062,3.7992,131.6,131.54,2.7207]
[1726062149448,3.7992,131.6,131.5,1.3195]
[1726062149449,29.21,131.6,131.5,1.3195]
[1726062149649,29.21,131.6,131.51,29.21]
[1726062149849,3.89453942,131.6,131.51,29.21]
[1726062150062,29.21,131.62,131.51,29.21]
[1726062150254,29.21,131.6,131.51,3.8016]
[1726062150456,29.21,131.6,131.5,4.0355]
[1726062150658,3.7996,131.59,131.53,3.8011]
[1726062150863,29.21,131.6,131.53,3.8011]
[1726062151163,33.00952848,131.6,131.5,4.0355]
[1726062151358,3.8001,131.57,131.51,3.8016]
[1726062151757,3.88888888,131.58,131.5,4.0355]
[1726062151950,3.7995,131.59,131.51,29.21]
[1726062152151,29.21,131.6,131.51,29.21]
[1726062152455,29.21,131.63,131.51,29.21]
[1726062152964,29.21,131.6,131.5,4.0355]
[1726062153162,32.93195604,131.6,131.5,4.0355]
[1726062153359,29.21,131.63,131.51,29.21]
[1726062153664,3.7997,131.59,131.51,29.21]
[1726062154067,29.21,131.63,131.51,29.21]
[1726062154258,3.7996,131.59,131.54,3.8008]
[1726062154454,3.74306721,131.6,131.51,29.21]
[1726062154656,29.21,131.61,131.5,4.0355]
[1726062154855,3.7998,131.58,131.53,3.8011]
[1726062155163,3.81605817,131.58,131.53,3.8011]
[1726062155358,3.8,131.57,131.52,3.8013]
[1726062155661,3.71493529,131.59,131.5,4.0355]
[1726062155857,29.21,131.61,131.5,4.0355]
[1726062156053,3.7996,131.59,131.54,3.8008]
[1726062156361,3.77043882,131.6,131.5,4.0355]
[1726062156565,29.21,131.61,131.5,4.0355]
[1726062156871,3.8002,131.57,131.52,3.8013]
[1726062157462,29.21,131.61,131.53,3.8011]
[1726062157968,3.7996,131.59,131.54,3.8008]
[1726062158157,7.69077043,131.59,131.54,3.8008]
[1726062158762,29.21,131.63,131.5,4.0355]
[1726062158960,29.21,131.63,131.52,29.21]
[1726062159156,3.7993,131.6,131.52,29.21]
[1726062159362,3.73678606,131.6,131.54,3.8007]
[1726062159557,29.21,131.63,131.52,29.21]
[1726062159753,3.7995,131.59,131.54,3.8007]
[1726062159954,7.6758404,131.59,131.54,3.8007]
[1726062160159,29.21,131.63,131.52,29.21]
[1726062160364,29.21,131.6,131.5,33.2455]
[1726062160567,32.93101786,131.6,131.5,33.2455]
[1726062160861,3.8002,131.57,131.5,33.2455]
[1726062161065,3.8002,131.57,131.52,3.8013]
[1726062161260,3.8011,131.54,131.5,4.0355]
[1726062161459,29.21,131.58,131.5,2.716]
[1726062161765,29.21,131.56,131.5,2.716]
[1726062162669,29.21,131.56,131.43,32.94394335]
[1726062162865,29.21,131.56,131.41,1.3304]
[1726062162866,29.21,131.56,131.45,29.21]
[1726062163864,3.8011,131.54,131.48,3.8024]
[1726062164672,3.8006,131.55,131.45,29.21]
[1726062164964,29.21,131.56,131.48,3.8025]
[1726062165270,3.8014,131.53,131.48,3.8025]
[1726062165474,29.21,131.56,131.47,3.8027]
[1726062165666,29.21,131.54,131.47,3.8027]
[1726062165865,3.82967937,131.53,131.47,3.8027]
[1726062166066,3.82967937,131.53,131.44,2.7327]
[1726062166768,29.21,131.56,131.45,29.21]
[1726062167963,3.8012,131.53,131.49,3.8021]
[1726062168675,29.21,131.56,131.45,29.21]
[1726062169079,29.21,131.58,131.47,29.21]
[1726062169278,29.21,131.58,131.48,1.3303]
[1726062169573,3.75618577,131.57,131.48,1.3303]
[1726062169769,225.2144,131.62,131.52,29.21]
[1726062169964,3.81424878,131.6,131.53,2.6563]
[1726062170164,33.02424878,131.6,131.53,2.6563]
[1726062170369,3.8008,131.55,131.53,2.6563]
[1726062170574,33.02424878,131.6,131.48,30.5403]
[1726062170575,29.21,131.6,131.48,30.5403]
[1726062170872,2.9843309,131.6,131.49,2.6563]
[1726062171076,29.21,131.59,131.5,3.8018]
[1726062171277,29.21,131.59,131.49,2.6563]
[1726062171479,32.95391727,131.59,131.49,2.6563]
[1726062171678,3.8003,131.57,131.52,3.8013]
[1726062171875,3.74391727,131.59,131.49,2.6563]
[1726062172077,29.21,131.61,131.49,2.6563]
[1726062172280,29.21,131.61,131.52,3.8014]
[1726062172482,29.21,131.59,131.49,2.6563]
[1726062172879,3.8008,131.55,131.5,3.802]
[1726062173277,29.21,131.59,131.5,3.802]
[1726062173478,29.21,131.56,131.44,29.21]
[1726062173686,29.21,131.54,131.45,1.312]
[1726062173983,3.8016,131.52,131.47,3.8027]
[1726062174194,3.80514146,131.53,131.45,1.312]
[1726062174677,29.21,131.59,131.46,29.21]
[1726062174879,3.8006,131.55,131.5,3.8019]
[1726062175082,29.21,131.59,131.46,29.21]
[1726062175278,29.21,131.59,131.48,29.21]
[1726062175477,29.21,131.59,131.49,1.3326]
[1726062175680,3.8002,131.57,131.52,3.8014]
[1726062175875,29.21,131.59,131.5,1.3346]
[1726062176078,33.0995225,131.61,131.5,1.3346]
[1726062176276,29.21,131.61,131.51,3.8015]
[1726062176679,3.8002,131.57,131.51,3.8015]
[1726062176881,29.21,131.58,131.45,1.312]
[1726062177088,29.21,131.56,131.46,1.3346]
[1726062177488,29.21,131.56,131.46,30.5446]
[1726062177685,29.21,131.58,131.46,30.5446]
[1726062177889,3.8007,131.55,131.46,30.5446]
[1726062178390,3.8007,131.55,131.5,3.8019]
[1726062178886,3.8005,131.56,131.46,30.5446]
[1726062179282,3.8001,131.57,131.46,30.5446]
[1726062179486,29.21,131.6,131.51,29.21]
[1726062179687,29.21,131.6,131.53,3.801]
[1726062179887,29.21,131.6,131.51,29.21]
[1726062179888,3.8003,131.57,131.51,29.21]
[1726062180296,3.8003,131.57,131.53,3.8011]
[1726062180586,3.8003,131.57,131.46,30.5446]
[1726062180587,3.88318503,131.59,131.48,29.21]
[1726062180786,29.21,131.6,131.48,29.21]
[1726062180987,30.4244,131.62,131.5,29.21]
[1726062181179,29.21,131.6,131.51,2.6726]
[1726062181381,29.21,131.58,131.51,2.6726]
[1726062181585,29.21,131.6,131.51,2.6726]
[1726062181980,29.21,131.6,131.48,29.21]
[1726062181981,29.21,131.58,131.48,29.21]
[1726062182281,29.21,131.55,131.47,1.2989]
[1726062182581,29.21,131.54,131.46,1.3346]
[1726062182984,3.8016,131.52,131.47,3.8029]
[1726062183188,29.21,131.54,131.46,1.3346]
[1726062183383,3.79850916,131.53,131.46,1.3346]
[1726062183590,3.8016,131.52,131.46,5.1376]
[1726062183796,29.21,131.54,131.46,5.1376]
[1726062183993,29.21,131.54,131.46,1.3346]
[1726062184192,29.21,131.54,131.43,2.6217]
[1726062184393,1.215,131.53,131.43,2.6217]
[1726062184589,4.97736912,131.53,131.43,2.6217]
[1726062184896,3.8021,131.5,131.45,3.8032]
[1726062185094,4.97736912,131.53,131.43,2.6217]
[1726062185393,29.21,131.51,131.43,2.6217]
[1726062185595,3.8028,131.48,131.43,6.4257]
[1726062185796,29.21,131.51,131.43,2.6217]
[1726062186187,29.21,131.49,131.42,1.4122]
[1726062186789,3.8031,131.47,131.42,1.4122]
[1726062187299,3.8031,131.47,131.39,30.5623]
[1726062187300,29.21,131.47,131.39,1.3523]
[1726062187496,3.8036,131.45,131.39,5.1573]
[1726062188296,7.67962465,131.46,131.4,3.8049]
[1726062188591,7.67962465,131.46,131.39,1.3523]
[1726062188789,3.804,131.44,131.39,1.3523]
[1726062188988,29.21,131.45,131.35,1.3477]
[1726062189195,29.21,131.42,131.35,1.3477]
[1726062189492,29.21,131.41,131.32,1.3078]
[1726062189990,3.80796455,131.45,131.32,1.3078]
[1726062190196,29.21,131.39,131.32,1.3078]
[1726062190499,29.21,131.43,131.36,3.8059]
[1726062190887,3.76152132,131.43,131.34,29.21]
[1726062191195,1.2151,131.46,131.33,1.3582]
[1726062191390,29.21,131.43,131.33,1.3582]
[1726062191599,29.21,131.43,131.35,3.8062]
[1726062191786,29.21,131.43,131.33,1.3582]
[1726062191988,3.8051,131.4,131.34,3.8065]
[1726062192198,3.8051,131.4,131.33,1.3582]
[1726062192691,3.8051,131.4,131.35,3.8063]
[1726062193093,29.21,131.43,131.33,1.3582]
[1726062193292,29.21,131.49,131.38,29.21]
[1726062193500,29.21,131.49,131.39,4.0484]
[1726062193690,3.8037,131.45,131.39,4.0484]
[1726062194094,3.71355535,131.46,131.39,4.0484]
[1726062194288,29.21,131.48,131.39,4.0484]
[1726062194595,29.21,131.5,131.39,4.0484]
[1726062194895,29.21,131.5,131.39,33.2584]
[1726062195296,3.8033,131.46,131.39,33.2584]
[1726062195895,3.8033,131.46,131.41,3.8046]
[1726062196095,29.21,131.5,131.39,33.2584]
[1726062196298,1.2161,131.51,131.41,29.21]
[1726062196497,3.802,131.51,131.43,29.21]
[1726062196798,29.21,131.52,131.41,29.21]
[1726062196999,3.8031,131.47,131.42,3.8043]
[1726062197192,3.90004384,131.48,131.39,33.2584]
[1726062197394,29.21,131.5,131.42,3.8042]
[1726062197595,3.8034,131.46,131.39,33.2584]
[1726062198205,3.8034,131.46,131.42,3.8043]
[1726062198500,33.02746094,131.5,131.39,33.2584]
[1726062198702,33.02746094,131.5,131.41,3.8044]
[1726062198901,33.02746094,131.5,131.39,33.2584]
[1726062199294,33.02746094,131.5,131.42,3.8043]
[1726062199495,3.8033,131.46,131.39,33.2584]
[1726062199998,3.8033,131.46,131.41,3.8046]
[1726062200400,3.8029,131.48,131.39,33.2584]
[1726062200601,33.02746094,131.5,131.39,33.2584]
[1726062201008,33.02746094,131.5,131.43,3.8039]
[1726062201299,33.02746094,131.5,131.39,33.2584]
[1726062201502,3.8028,131.48,131.43,3.8038]
[1726062201703,3.81746094,131.5,131.39,33.2584]
[1726062201905,29.21,131.52,131.41,29.21]
[1726062202495,29.21,131.54,131.4,29.21]
[1726062202801,3.73744292,131.53,131.44,29.21]
[1726062202997,3.8012,131.53,131.49,3.8023]
[1726062203397,3.72678843,131.53,131.45,2.6704]
[1726062203598,1.2161,131.55,131.45,2.6704]
[1726062204396,1.2161,131.55,131.48,3.8025]
[1726062204807,1.2161,131.55,131.46,1.3716]
[1726062204808,1.2161,131.55,131.46,30.5816]
[1726062205107,3.8007,131.55,131.5,3.802]
[1726062205807,29.21,131.58,131.46,30.5816]
[1726062206003,1.2168,131.59,131.49,29.21]
[1726062206197,29.21,131.58,131.46,30.5816]
[1726062207499,3.8009,131.54,131.49,3.8022]
[1726062207702,3.7641728,131.53,131.46,30.5816]
[1726062207909,29.21,131.56,131.46,30.5816]
[1726062207910,3.8019,131.51,131.46,5.1746]
[1726062208113,3.82198368,131.52,131.46,1.3716]
[1726062208304,29.21,131.56,131.46,1.3716]
[1726062208499,29.21,131.56,131.49,3.8021]
[1726062208706,29.21,131.56,131.46,30.5816]
[1726062208901,29.21,131.58,131.46,30.5816]
[1726062209412,1.2168,131.59,131.46,1.3716]
[1726062209413,29.21,131.54,131.46,1.3716]
[1726062209602,29.21,131.52,131.45,1.311]
[1726062209799,33.04073411,131.52,131.45,1.311]
[1726062210107,29.21,131.55,131.45,1.311]
[1726062210801,3.8014,131.53,131.48,3.8026]
[1726062210997,3.74971472,131.53,131.45,1.311]
[1726062211198,29.21,131.52,131.45,1.311]
[1726062211406,33.05899201,131.52,131.45,1.311]
[1726062211607,33.05899201,131.52,131.41,30.5478]
[1726062211806,33.05899201,131.52,131.42,1.3413]
[1726062212111,3.84899201,131.52,131.42,1.3413]
[1726062212309,29.21,131.52,131.42,1.3413]
[1726062212513,32.97151407,131.52,131.42,1.3413]
[1726062212713,29.21,131.5,131.42,1.3413]
[1726062212913,29.21,131.48,131.37,30.6253]
[1726062213206,29.21,131.48,131.37,33.3119]
[1726062213808,29.21,131.43,131.32,29.21]
[1726062214007,29.21,131.41,131.3,29.21]
[1726062214208,3.8057,131.38,131.32,3.8072]
[1726062214616,3.8973349,131.39,131.32,3.8072]
[1726062214912,29.21,131.41,131.3,29.21]
[1726062215115,32.98026443,131.41,131.32,3.8072]
[1726062215315,32.98026443,131.41,131.3,29.21]
[1726062215515,3.8056,131.38,131.32,3.8072]
[1726062215918,32.98026443,131.41,131.3,29.21]
[1726062216706,3.8056,131.38,131.32,3.8072]
[1726062216907,32.98026443,131.41,131.3,29.21]
[1726062217423,29.21,131.39,131.28,33.3119]
[1726062217815,32.98026443,131.41,131.28,33.3119]
[1726062218111,29.21,131.39,131.28,33.3119]
[1726062218312,3.8064,131.35,131.28,33.3119]
[1726062218507,29.21,131.37,131.28,4.1019]
[1726062218706,29.21,131.39,131.24,29.21]
[1726062218707,29.21,131.35,131.24,29.21]
[1726062218906,29.21,131.35,131.13,190.22952161]
[1726062218907,29.21,131.3,131.21,1.3908]
[1726062219320,29.21,131.3,131.19,2.6893]
[1726062219916,3.8091,131.26,131.19,2.6893]
[1726062220314,3.8091,131.26,131.2,3.8107]
[1726062220517,29.21,131.28,131.19,2.6893]
[1726062220717,3.76123846,131.27,131.19,2.6893]
[1726062221115,3.8092,131.26,131.19,2.6893]
[1726062221321,3.76123846,131.27,131.19,2.6893]
[1726062221621,3.8087,131.28,131.22,3.8101]
[1726062221826,3.81803559,131.27,131.19,2.6893]
[1726062222022,29.21,131.29,131.19,2.6893]
[1726062222331,3.8089,131.27,131.21,3.8104]
[1726062222624,33.0182,131.29,131.23,3.8096]
[1726062222827,29.21,131.31,131.19,2.6893]
[1726062224228,3.8082,131.29,131.23,3.8096]
[1726062224423,3.78830843,131.28,131.19,2.6893]
[1726062224627,29.21,131.31,131.19,2.6893]
[1726062224824,3.8085,131.28,131.22,3.8099]
[1726062225127,3.82337124,131.28,131.19,2.6893]
[1726062225321,29.21,131.26,131.19,2.6893]
[1726062225720,29.21,131.24,131.14,30.6008]
[1726062225923,3.81422442,131.28,131.15,1.336]
[1726062225924,1.2175,131.27,131.15,1.336]
[1726062226124,29.21,131.25,131.15,1.336]
[1726062226324,29.21,131.22,131.15,2.7466]
[1726062226831,33.0202,131.22,131.17,3.8116]
[1726062227122,29.21,131.22,131.17,3.8116]
[1726062227331,33.0202,131.22,131.16,3.8118]
[1726062227728,29.21,131.22,131.16,3.8118]
[1726062228324,29.21,131.22,131.15,2.7466]
[1726062228535,29.21,131.22,131.1,29.21]
[1726062228536,29.21,131.2,131.1,29.21]
[1726062228727,33.0209,131.2,131.15,3.8121]
[1726062229027,33.07850183,131.2,131.11,4.1013]
[1726062229229,33.07850183,131.2,131.15,3.812]
[1726062229531,33.07850183,131.2,131.11,4.1013]
[1726062229732,36.88950183,131.2,131.14,3.8123]
[1726062229930,36.88950183,131.2,131.11,4.1013]
[1726062230127,29.21,131.2,131.11,4.1013]
[1726062230332,29.21,131.22,131.11,4.1013]
[1726062230529,29.21,131.22,131.12,29.21]
[1726062230725,29.21,131.25,131.12,29.21]
[1726062230922,3.8102,131.22,131.17,3.8113]
[1726062231223,29.21,131.25,131.12,29.21]
[1726062231423,3.81,131.23,131.18,3.8111]
[1726062231630,29.21,131.25,131.12,29.21]
[1726062232038,29.21,131.25,131.18,3.8111]
[1726062232224,29.21,131.25,131.12,29.21]
[1726062233033,34.29355641,131.27,131.14,29.21]
[1726062233222,34.29355641,131.27,131.16,29.21]
[1726062233428,5.08355641,131.27,131.16,29.21]
[1726062233629,3.8096,131.24,131.2,3.8107]
[1726062233834,34.29355641,131.27,131.16,29.21]
[1726062234234,3.809,131.26,131.22,3.8101]
[1726062234530,29.21,131.29,131.2,1.2878]
[1726062234737,3.76086796,131.28,131.2,3.964]
[1726062235031,30.4283,131.31,131.2,3.964]
[1726062235236,29.21,131.27,131.2,3.964]
[1726062235431,3.76925255,131.26,131.2,2.6668]
[1726062236533,7.57845255,131.26,131.21,3.8102]
[1726062236836,3.76925255,131.26,131.21,3.8102]
[1726062237037,3.76925255,131.26,131.2,6.4775]
[1726062237038,3.8095,131.25,131.2,6.4775]
[1726062237233,3.76925255,131.26,131.2,2.6668]
[1726062237425,29.21,131.27,131.12,29.21]
[1726062237627,29.21,131.23,131.11,2.6518]
[1726062237831,33.039088,131.23,131.11,2.6518]
[1726062238032,33.039088,131.23,131.12,29.21]
[1726062238433,3.8108,131.2,131.12,29.21]
[1726062238638,33.039088,131.23,131.12,29.21]
[1726062239039,3.8107,131.21,131.16,3.8116]
[1726062239338,3.8107,131.21,131.11,2.6518]
[1726062239339,29.21,131.21,131.11,2.6518]
[1726062239637,1.2172,131.2,131.13,3.8127]
[1726062239841,1.2172,131.2,131.11,2.6518]
[1726062240231,29.21,131.19,131.11,2.6518]
[1726062241035,29.21,131.22,131.11,2.6518]
[1726062241239,3.8103,131.22,131.17,3.8113]
[1726062241428,3.81816745,131.23,131.12,29.21]
[1726062241635,29.21,131.24,131.11,2.6518]
[1726062241636,29.21,131.24,131.14,29.21]
[1726062241831,3.8094,131.25,131.21,3.8104]
[1726062242033,34.31286127,131.26,131.16,1.3159]
[1726062242438,3.81,131.23,131.19,3.811]
[1726062242633,34.31286127,131.26,131.16,1.3159]
[1726062243029,3.88566127,131.26,131.16,30.5259]
[1726062243231,29.21,131.28,131.18,29.21]
[1726062243444,29.21,131.3,131.19,2.7207]
[1726062243643,3.8088,131.27,131.22,3.8101]
[1726062243843,29.21,131.3,131.21,29.21]
[1726062244233,1.2185,131.33,131.21,29.21]
[1726062244435,29.21,131.32,131.21,29.21]
[1726062244746,3.83510769,131.35,131.2,29.21]
[1726062244949,562.0,131.4,131.27,29.21]
[1726062244950,29.21,131.37,131.27,29.21]
[1726062245152,29.21,131.33,131.21,1.39990782]
[1726062245334,29.21,131.33,131.2,29.21]
[1726062245335,29.21,131.31,131.2,29.21]
[1726062245736,33.0176,131.31,131.2,29.21]
[1726062246045,33.02182821,131.31,131.2,29.21]
[1726062246341,29.21,131.33,131.22,29.21]
[1726062246541,3.83621416,131.32,131.23,1.3348]
[1726062246745,3.83621416,131.32,131.25,3.809]
[1726062246746,3.8079,131.3,131.25,3.809]
[1726062247048,3.83621416,131.32,131.23,1.3348]
[1726062247252,3.8085,131.28,131.23,5.1446]
[1726062247450,5.05852446,131.32,131.23,1.3348]
[1726062247648,1.2185,131.32,131.23,1.3348]
[1726062247847,3.8079,131.3,131.25,3.8091]
[1726062248344,5.11378237,131.32,131.23,1.3348]
[1726062248543,29.21,131.33,131.23,1.3348]
[1726062248748,32.98372517,131.4,131.26,29.21]
[1726062248749,29.21,131.35,131.26,29.21]
[1726062249548,29.21,131.35,131.24,29.21]
[1726062249851,3.807,131.33,131.26,29.21]
[1726062250046,3.807,131.33,131.27,2.7274]
[1726062250646,3.807,131.33,131.28,3.8082]
[1726062250838,3.8075,131.32,131.27,2.7274]
[1726062251044,3.8075,131.32,131.27,6.5359]
[1726062251447,3.8067,131.34,131.29,3.8079]
[1726062251644,29.21,131.39,131.28,29.21]
[1726062252150,33.026,131.39,131.28,29.21]
[1726062253150,3.8065,131.35,131.3,3.8078]
[1726062253647,3.816,131.39,131.3,3.8078]
[1726062253855,1.2178,131.4,131.3,3.8078]
[1726062253856,29.21,131.38,131.3,3.8078]
[1726062254250,3.80419047,131.37,131.28,29.21]
[1726062254451,3.84550556,131.38,131.27,2.7274]
[1726062254658,29.21,131.35,131.27,2.7274]
[1726062254853,3.8075,131.32,131.27,2.7274]
[1726062255054,3.82151161,131.34,131.27,2.7274]
[1726062255255,3.8076,131.31,131.27,2.7274]
[1726062255560,30.4278,131.4,131.25,3.8092]
[1726062255561,29.21,131.33,131.25,3.8092]
[1726062255751,3.8081,131.3,131.25,3.8092]
[1726062255959,29.21,131.35,131.24,31.9304]
[1726062256354,3.8077,131.31,131.24,31.9304]
[1726062256555,3.8077,131.31,131.26,3.809]
[1726062256759,3.8077,131.31,131.24,31.9304]
[1726062257061,3.8073,131.32,131.24,31.9304]
[1726062257357,3.83674586,131.34,131.24,31.9304]
[1726062257560,3.8076,131.31,131.24,31.9304]
[1726062257861,3.83674586,131.34,131.27,3.8085]
[1726062258059,3.83674586,131.34,131.24,31.9304]
[1726062258655,3.808,131.3,131.26,3.8089]
[1726062258857,3.808,131.3,131.24,31.9304]
[1726062259165,3.808,131.3,131.26,3.8089]
[1726062259660,29.21,131.31,131.24,2.7204]
[1726062259857,29.21,131.31,131.19,29.21]
[1726062260165,29.21,131.29,131.21,3.8104]
[1726062260351,29.21,131.29,131.18,4.119]
[1726062260663,29.21,131.26,131.18,4.119]
[1726062261054,3.85072413,131.25,131.18,4.119]
[1726062261252,29.21,131.24,131.18,1.4159]
[1726062261462,29.21,131.24,131.14,2.6925]
[1726062261966,29.21,131.24,131.15,1.3078]
[1726062262464,33.08626095,131.26,131.15,30.5178]
[1726062262661,29.21,131.26,131.15,30.5178]
[1726062262858,1.2189,131.31,131.17,29.21]
[1726062262859,29.21,131.28,131.17,29.21]
[1726062263666,3.8098,131.24,131.17,29.21]
[1726062263965,29.21,131.28,131.17,29.21]
[1726062264267,1.2189,131.31,131.15,30.5178]
[1726062264268,29.21,131.26,131.15,30.5178]
[1726062264566,29.21,131.24,131.15,30.5178]
[1726062264767,29.21,131.24,131.15,1.3078]
[1726062265063,3.76344156,131.26,131.15,30.5178]
[1726062265263,29.21,131.27,131.15,30.5178]
[1726062265658,3.76992105,131.26,131.15,30.5178]
[1726062265858,3.76992105,131.26,131.2,3.8107]
[1726062266059,29.21,131.27,131.17,29.21]
[1726062266260,29.21,131.3,131.17,29.21]
[1726062266962,3.8088,131.27,131.22,3.8099]
[1726062267160,29.21,131.3,131.19,29.21]
[1726062268062,29.21,131.3,131.15,30.5178]
[1726062268063,29.21,131.27,131.18,3.8113]
[1726062268464,3.8488184,131.26,131.15,30.5178]
[1726062268768,3.8098,131.24,131.19,3.811]
[1726062268969,3.77106449,131.25,131.19,3.811]
[1726062269172,29.21,131.27,131.19,3.811]
[1726062269465,3.8096,131.24,131.2,3.8107]
[1726062269656,29.21,131.27,131.15,30.5178]
[1726062269962,3.8091,131.26,131.2,3.8105]
[1726062270170,29.21,131.29,131.18,29.21]
[1726062271061,3.8087,131.27,131.22,3.8099]